bitfinex/quotes_SOLUSD_20250305
["timestamp","ask_amount","ask_price","bid_price","bid_amount"]
[1741192695445,46.2594739,141.7,141.65,18.64964886]
[1741192695639,53.3166739,141.7,141.63,87.9935]
[1741192695841,46.2594739,141.69,141.63,0.033]
[1741192696243,7.0581,141.68,141.63,0.033]
[1741192697466,0.28432314,141.67,141.63,0.033]
[1741192697647,46.2594739,141.66,141.63,0.033]
[1741192698262,46.2594739,141.65,141.63,0.033]
[1741192698886,46.2594739,141.7,141.63,49.2796184]
[1741192699052,46.2594739,141.7,141.65,30.45480797]
[1741192699592,46.2594739,141.7,141.66,7.0591]
[1741192700369,46.2594739,141.7,141.65,7.0594]
[1741192701282,46.2594739,141.7,141.65,37.51420797]
[1741192701591,46.2594739,141.7,141.67,312.0]
[1741192702163,46.2594739,141.73,141.68,18.79181043]
[1741192702382,10.77743145,141.75,141.7,30.59696954]
[1741192702681,0.03,141.75,141.7,0.14216157]
[1741192702886,7.0848,141.75,141.69,18.64964886]
[1741192703184,7.0848,141.75,141.68,80.9]
[1741192703395,7.0848,141.75,141.66,0.14216157]
[1741192703396,46.54379704,141.74,141.66,0.14216157]
[1741192703686,8.54806901,141.73,141.65,7.0594]
[1741192703985,46.2594739,141.72,141.66,18.79181043]
[1741192704486,46.2594739,141.72,141.66,49.2466184]
[1741192704694,46.2894739,141.75,141.69,18.79181043]
[1741192704894,46.2894739,141.75,141.68,0.14216157]
[1741192705073,46.2894739,141.75,141.69,312.0]
[1741192705283,53.3443739,141.75,141.69,312.0]
[1741192705799,46.54379704,141.74,141.69,312.0]
[1741192706102,46.40163547,141.73,141.63,37.16780797]
[1741192706404,0.28432314,141.7,141.63,0.033]
[1741192706697,46.2594739,141.69,141.63,0.033]
[1741192706994,0.28432314,141.66,141.63,0.033]
[1741192707169,46.2594739,141.65,141.63,0.033]
[1741192707713,46.2594739,141.68,141.63,0.033]
[1741192707899,46.2594739,141.68,141.63,25.74314886]
[1741192708093,46.2594739,141.68,141.63,18.68264886]
[1741192708313,53.3175739,141.68,141.63,18.68264886]
[1741192708514,10.74743145,141.69,141.64,0.14216157]
[1741192708691,10.74743145,141.69,141.66,18.79181043]
[1741192708900,10.74743145,141.69,141.67,312.0]
[1741192709601,46.2594739,141.71,141.67,312.0]
[1741192709801,46.2594739,141.71,141.68,30.45480797]
[1741192710017,46.2594739,141.73,141.69,7.0576]
[1741192710204,10.74743145,141.74,141.66,118.41380797]
[1741192710205,17.80263145,141.74,141.66,118.41380797]
[1741192710511,46.2594739,141.73,141.66,18.79181043]
[1741192710818,46.2594739,141.73,141.66,30.45480797]
[1741192710989,47.75194291,141.73,141.64,0.14216157]
[1741192711190,46.2594739,141.72,141.64,30.59696954]
[1741192711413,46.2594739,141.72,141.64,18.79181043]
[1741192711787,48.03626605,141.71,141.63,0.033]
[1741192711994,46.2594739,141.7,141.63,25.74314886]
[1741192712192,53.3167739,141.7,141.63,25.74314886]
[1741192712798,0.28432314,141.69,141.64,312.0]
[1741192713003,46.2594739,141.68,141.64,312.0]
[1741192713305,46.2594739,141.67,141.64,312.0]
[1741192714016,46.2594739,141.67,141.64,319.0598]
[1741192714730,46.2594739,141.67,141.64,37.51460797]
[1741192715733,53.3163739,141.71,141.64,7.0598]
[1741192715932,46.2594739,141.7,141.64,7.0598]
[1741192716309,53.3166739,141.7,141.64,7.0598]
[1741192716709,53.3166739,141.7,141.63,25.88531043]
[1741192717015,46.2594739,141.7,141.63,56.3401184]
[1741192717408,46.2594739,141.7,141.65,18.79181043]
[1741192717607,53.3166739,141.7,141.64,0.14216157]
[1741192717834,46.54379704,141.69,141.63,0.033]
[1741192718211,7.0581,141.68,141.63,0.033]
[1741192718509,46.2594739,141.67,141.63,0.033]
[1741192720311,53.3183739,141.67,141.63,0.033]
[1741192721014,46.2594739,141.66,141.63,0.033]
[1741192722239,46.2594739,141.69,141.63,49.2796184]
[1741192722441,53.3170739,141.69,141.63,49.2796184]
[1741192722617,46.2594739,141.69,141.63,18.82481043]
[1741192723445,46.2594739,141.69,141.63,49.2796184]
[1741192723744,53.3170739,141.69,141.63,49.13745683]
[1741192723925,46.2594739,141.69,141.63,49.13745683]
[1741192724120,46.2594739,141.69,141.64,7.20226157]
[1741192724935,46.2594739,141.69,141.66,312.0]
[1741192725612,53.3171739,141.69,141.63,0.033]
[1741192725941,1.91895372,141.68,141.63,0.033]
[1741192726118,0.14216157,141.66,141.63,0.033]
[1741192726448,46.2594739,141.65,141.63,0.033]
[1741192727039,7.0586,141.67,141.63,0.033]
[1741192727336,53.3172739,141.69,141.63,0.17516157]
[1741192727509,46.2594739,141.69,141.64,18.64964886]
[1741192727713,0.03,141.7,141.66,30.45480797]
[1741192727922,0.03,141.7,141.65,30.59696954]
[1741192728135,46.2594739,141.69,141.64,0.14216157]
[1741192728321,57.00690535,141.69,141.64,7.0601]
[1741192728670,57.00690535,141.69,141.65,312.0]
[1741192729417,57.00690535,141.69,141.65,18.64964886]
[1741192729640,57.00690535,141.69,141.66,0.14216157]
[1741192730325,57.00690535,141.69,141.67,7.0586]
[1741192730537,46.2594739,141.69,141.67,7.0586]
[1741192730841,0.03,141.7,141.67,7.0586]
[1741192731350,0.03,141.7,141.67,37.51340797]
[1741192731652,0.03,141.7,141.68,49.2466184]
[1741192732226,0.03,141.7,141.69,25.84941043]
[1741192732630,0.03,141.7,141.69,18.79181043]
[1741192732857,0.03,141.7,141.69,49.2466184]
[1741192733252,0.03,141.7,141.69,49.38877997]
[1741192734445,0.03,141.7,141.69,56.73070311]
[1741192734971,0.03,141.75,141.72,18.79181043]
[1741192735270,0.03,141.75,141.74,49.10445683]
[1741192735452,0.03,141.75,141.74,130.57310311]
[1741192735858,0.03,141.75,141.74,442.57310311]
[1741192736252,1.34502,141.78,141.76,0.14216157]
[1741192736555,1.34502,141.78,141.77,37.50840797]
[1741192737551,1.34502,141.78,141.77,56.44237997]
[1741192737759,1.34502,141.78,141.77,213.90742002]
[1741192738078,1.34502,141.78,141.77,212.42670311]
[1741192738243,1.34502,141.78,141.77,87.9536]
[1741192738448,1.34502,141.78,141.77,195.25784102]
[1741192738650,0.03,141.84,141.83,20.0]
[1741192738962,0.03,141.84,141.83,226.85353081]
[1741192739158,0.03,141.84,141.83,225.37310311]
[1741192739470,0.03,141.84,141.83,518.29696954]
[1741192739671,0.03,141.84,141.83,443.49696954]
[1741192739856,0.03,141.84,141.83,312.14216157]
[1741192740050,0.03,141.84,141.83,342.45480797]
[1741192740257,0.03,141.84,141.83,312.0]
[1741192740947,0.03,141.84,141.78,37.50780797]
[1741192741149,0.03,141.84,141.77,186.15480797]
[1741192741348,46.2894739,141.84,141.77,30.45480797]
[1741192741567,46.2894739,141.84,141.79,30.59696954]
[1741192742280,46.2894739,141.84,141.77,30.45480797]
[1741192742567,46.2894739,141.84,141.79,30.45480797]
[1741192742957,46.2894739,141.84,141.8,49.2466184]
[1741192743140,0.03,141.84,141.8,49.2466184]
[1741192743345,0.03,141.84,141.83,30.45480797]
[1741192743567,0.03,141.84,141.83,49.2466184]
[1741192743946,0.03,141.84,141.83,361.2466184]
[1741192744140,0.03,141.85,141.83,442.57310311]
[1741192744374,0.03,141.85,141.84,51.15312826]
[1741192744545,0.03,141.85,141.84,58.20322826]
[1741192745053,0.03,141.85,141.84,139.10322826]
[1741192745472,0.03,141.85,141.84,137.1967184]
[1741192745977,0.03,141.85,141.84,80.9]
[1741192746147,0.03,141.85,141.84,137.1967184]
[1741192746875,0.03,141.85,141.84,139.10330273]
[1741192747569,0.03,141.85,141.84,449.1967184]
[1741192748272,0.03,141.85,141.84,430.40490797]
[1741192748651,0.03,141.85,141.84,449.05455683]
[1741192748869,0.03,141.85,141.84,449.33887997]
[1741192750048,0.03,141.85,141.84,449.62320311]
[1741192751573,0.0001,141.85,141.84,574.42320311]
[1741192751775,0.0001,141.85,141.84,579.98773411]
[1741192752675,0.03,141.93,141.89,0.28432314]
[1741192752974,0.03,141.93,141.89,130.28877997]
[1741192753271,0.03,141.93,141.92,20.28432314]
[1741192753468,0.03,141.93,141.92,150.57310311]
[1741192753696,0.03,141.93,141.92,157.33497997]
[1741192754077,0.03,141.93,141.92,157.1928184]
[1741192754255,0.03,141.93,141.92,157.61930311]
[1741192754450,0.03,142.0,141.92,163.97410311]
[1741192754655,0.03,142.0,141.97,30.45480797]
[1741192754869,0.03,142.0,141.98,30.45480797]
[1741192755565,0.03,142.0,141.97,30.45480797]
[1741192755767,0.03,142.0,141.99,312.0]
[1741192756083,0.03,142.0,141.96,80.9]
[1741192756281,0.03,142.0,141.97,49.2466184]
[1741192756578,0.03,142.0,141.97,56.2900184]
[1741192757563,0.03,142.0,141.98,30.45480797]
[1741192757764,0.03,142.0,141.99,18.79181043]
[1741192757959,0.03,142.0,141.97,7.0434]
[1741192757960,0.03,142.0,141.97,37.49820797]
[1741192758159,0.03,142.0,141.98,0.14216157]
[1741192758352,0.03,142.0,141.98,49.2466184]
[1741192758784,0.03,142.0,141.98,56.2895184]
[1741192758983,0.03,142.0,141.99,363.15187335]
[1741192759192,1.9842654,142.06,141.99,363.15187335]
[1741192759193,1.9842654,142.06,142.01,0.28432314]
[1741192759483,0.9842654,142.06,142.05,30.59696954]
[1741192759685,0.9842654,142.06,142.05,49.2466184]
[1741192759984,0.9842654,142.06,142.05,18.79181043]
[1741192760166,0.9842654,142.06,142.01,30.45480797]
[1741192760368,0.9842654,142.06,142.02,0.14216157]
[1741192760679,8.0235654,142.06,142.01,30.45480797]
[1741192760862,8.0235654,142.06,142.01,18.79181043]
[1741192761063,8.0235654,142.06,142.0,37.09480797]
[1741192761260,8.0237654,142.06,142.0,37.09480797]
[1741192761458,54.2832393,142.06,141.98,30.45480797]
[1741192761661,1.91895372,142.05,141.96,111.35480797]
[1741192761974,46.2594739,142.04,141.96,18.64964886]
[1741192762176,46.2594739,142.04,141.98,30.45480797]
[1741192762378,46.2594739,142.04,141.97,0.14216157]
[1741192762379,46.2594739,142.04,141.96,20.0]
[1741192762580,46.2594739,142.04,141.98,312.0]
[1741192762963,7.0407,142.03,141.98,312.0]
[1741192763163,7.0407,142.03,141.98,342.45480797]
[1741192764194,7.0407,142.03,141.98,312.0]
[1741192764572,24.6426,142.03,141.96,80.9]
[1741192764777,24.6426,142.03,141.96,111.35480797]
[1741192764984,46.2594739,142.02,141.95,30.45480797]
[1741192765177,46.2594739,142.01,141.95,30.45480797]
[1741192765483,46.2594739,142.01,141.96,30.45480797]
[1741192765690,46.2594739,142.01,141.95,49.2466184]
[1741192766398,47.7643739,142.01,141.95,30.45480797]
[1741192766579,47.7643739,142.01,141.94,111.35480797]
[1741192766762,53.30106448,142.01,141.94,111.35480797]
[1741192766966,7.0422,142.0,141.93,49.2796184]
[1741192767188,46.2594739,141.99,141.93,0.033]
[1741192767397,46.2594739,141.98,141.93,0.033]
[1741192767595,46.2594739,141.98,141.93,312.033]
[1741192767907,6.4763,142.0,141.94,18.79181043]
[1741192768198,6.4763,142.0,141.94,49.2466184]
[1741192768495,6.4763,142.0,141.93,0.033]
[1741192768664,46.54379704,141.99,141.93,0.033]
[1741192768868,46.2594739,141.99,141.93,30.62996954]
[1741192769097,46.2594739,141.99,141.93,37.53330797]
[1741192769285,0.28432314,141.98,141.93,0.033]
[1741192771097,0.14216157,141.95,141.93,0.033]
[1741192771298,46.40163547,141.94,141.93,0.033]
[1741192771801,6.0209,141.92,141.83,30.45480797]
[1741192772002,46.54379704,141.91,141.82,118.40580797]
[1741192772303,46.54379704,141.91,141.83,49.2466184]
[1741192772901,53.59059704,141.91,141.84,7.0501]
[1741192773422,46.2594739,141.91,141.85,18.64964886]
[1741192773625,46.2594739,141.91,141.85,49.10445683]
[1741192774318,6.0209,141.92,141.87,18.64964886]
[1741192774500,46.2594739,141.93,141.89,30.45480797]
[1741192774694,46.2594739,141.93,141.91,312.0]
[1741192774918,7.6753,141.96,141.91,312.0]
[1741192775125,46.68595861,141.95,141.91,312.0]
[1741192775303,46.68595861,141.95,141.86,0.14216157]
[1741192775508,46.2594739,141.94,141.86,18.79181043]
[1741192775715,46.2594739,141.94,141.86,56.2957184]
[1741192775925,46.2594739,141.94,141.86,25.84091043]
[1741192776130,0.14216157,141.92,141.84,30.45480797]
[1741192776320,46.2594739,141.91,141.83,37.50540797]
[1741192776829,46.2594739,141.91,141.84,30.45480797]
[1741192777033,46.2594739,141.91,141.86,30.45480797]
[1741192777511,46.2594739,141.91,141.84,55.13030797]
[1741192777906,46.2594739,141.91,141.85,30.45480797]
[1741192778108,46.2594739,141.94,141.86,49.2466184]
[1741192778330,46.2594739,141.94,141.89,312.0]
[1741192778525,46.2594739,141.93,141.89,312.0]
[1741192778915,46.2594739,141.93,141.9,7.0472]
[1741192779312,46.2594739,141.95,141.91,30.45480797]
[1741192779842,46.2594739,141.95,141.92,30.45480797]
[1741192780045,46.2594739,141.99,141.93,49.2466184]
[1741192780206,46.2594739,141.99,141.94,30.45480797]
[1741192780408,46.2594739,141.99,141.93,49.2466184]
[1741192780706,46.2594739,141.99,141.93,49.10445683]
[1741192781206,46.2594739,141.99,141.93,25.69534886]
[1741192781421,53.3022739,141.99,141.93,18.64964886]
[1741192781737,53.3022739,141.99,141.88,3.46809936]
[1741192781738,0.42648471,141.97,141.88,7.0482]
[1741192781941,46.2594739,141.96,141.91,312.0]
[1741192782106,46.2594739,141.95,141.91,312.0]
[1741192782507,46.2594739,141.98,141.92,0.14216157]
[1741192782735,46.2594739,141.98,141.92,30.59696954]
[1741192783014,53.8939739,142.0,141.94,30.45480797]
[1741192783637,60.9362739,142.0,141.94,30.45480797]
[1741192784519,60.9362739,142.0,141.94,18.79181043]
[1741192784722,60.9362739,142.0,141.93,30.59696954]
[1741192784932,60.9362739,142.0,141.93,18.79181043]
[1741192785134,60.9362739,142.0,141.92,30.45480797]
[1741192785433,60.9362739,142.0,141.93,30.45480797]
[1741192785611,60.9362739,142.0,141.94,312.0]
[1741192786010,1.77679215,141.99,141.9,80.9]
[1741192786335,48.03626605,141.99,141.9,111.35480797]
[1741192786836,48.03626605,141.99,141.89,30.59696954]
[1741192786837,0.28432314,141.97,141.89,30.59696954]
[1741192787132,46.2594739,141.96,141.88,130.00445683]
[1741192787506,7.0447,141.95,141.88,130.00445683]
[1741192788134,46.2594739,141.94,141.87,30.45480797]
[1741192788335,46.2594739,141.94,141.86,87.54]
[1741192788536,1.49246901,141.93,141.86,87.54]
[1741192788839,6.3441,141.92,141.86,87.54]
[1741192789019,54.1251739,141.92,141.87,312.0]
[1741192789222,46.2594739,141.91,141.87,312.0]
[1741192789441,7.0477,141.89,141.83,80.9]
[1741192789728,53.3071739,141.89,141.82,37.50590797]
[1741192790846,53.3071739,141.89,141.81,130.00445683]
[1741192791142,53.59149704,141.89,141.88,0.033]
[1741192791326,7.33202314,141.89,141.88,0.033]
[1741192791529,7.47418471,141.89,141.88,0.033]
[1741192791915,0.28432314,141.88,141.79,18.64964886]
[1741192792246,0.28432314,141.84,141.78,0.033]
[1741192792453,1.77679215,141.84,141.8,312.0]
[1741192792746,0.28432314,141.84,141.8,312.0]
[1741192793248,1.63463058,141.83,141.78,0.033]
[1741192793538,0.14216157,141.81,141.78,0.033]
[1741192793838,7.0521,141.8,141.78,0.033]
[1741192794253,8.54326901,141.83,141.78,0.033]
[1741192794410,7.0508,141.83,141.78,0.033]
[1741192795040,8.82709215,141.84,141.78,0.033]
[1741192795714,81.0,141.83,141.78,0.033]
[1741192796131,81.0,141.83,141.79,312.0]
[1741192797058,81.0,141.83,141.78,0.033]
[1741192797720,81.0,141.83,141.78,7.0861]
[1741192797913,81.0,141.83,141.78,37.54090797]
[1741192798318,81.0,141.83,141.78,7.0861]
[1741192798757,88.0509,141.83,141.78,0.033]
[1741192799038,0.28432314,141.82,141.78,0.033]
[1741192799417,81.0,141.83,141.78,0.033]
[1741192799920,81.0,141.83,141.79,312.0]
[1741192800325,7.6917,141.85,141.79,361.01047563]
[1741192800525,7.6917,141.85,141.79,49.01047563]
[1741192800730,81.42648471,141.84,141.78,0.033]
[1741192801046,1.49246901,141.83,141.78,0.033]
[1741192801256,81.0,141.84,141.78,18.82481043]
[1741192801539,81.0,141.86,141.78,18.82481043]
[1741192801751,81.0,141.86,141.8,49.01047563]
[1741192802046,81.0,141.86,141.79,7.0526]
[1741192802047,0.28432314,141.85,141.79,7.0526]
[1741192802252,0.14216157,141.84,141.78,0.033]
[1741192802434,0.14216157,141.82,141.78,0.033]
[1741192802668,0.28432314,141.8,141.78,0.033]
[1741192802861,82.77679215,141.79,141.78,0.033]
[1741192805561,0.28432314,141.65,141.63,0.033]
[1741192805857,8.83689215,141.64,141.63,0.033]
[1741192806056,8.97905372,141.64,141.63,0.033]
[1741192806474,27.77086415,141.64,141.63,0.033]
[1741192806667,0.28432314,141.63,141.53,0.033]
[1741192806953,0.28432314,141.61,141.57,312.0]
[1741192807251,81.14216157,141.6,141.53,0.033]
[1741192807471,1.63463058,141.59,141.53,0.033]
[1741192808187,8.69733058,141.59,141.53,0.033]
[1741192808353,82.63463058,141.6,141.53,0.033]
[1741192808547,81.0,141.6,141.53,49.04347563]
[1741192808977,81.0,141.6,141.53,0.17516157]
[1741192809187,81.0,141.6,141.53,49.04347563]
[1741192809569,81.0,141.6,141.54,49.01047563]
[1741192810253,2.06111529,141.59,141.53,312.033]
[1741192810453,1.91895372,141.59,141.53,312.033]
[1741192810872,1.49246901,141.59,141.53,312.033]
[1741192811059,81.0,141.6,141.53,368.10907563]
[1741192811255,0.28432314,141.6,141.53,368.10907563]
[1741192811466,1.49246901,141.61,141.53,368.10907563]
[1741192812175,82.49246901,141.61,141.53,319.0986]
[1741192812380,89.55426901,141.61,141.53,319.0986]
[1741192812767,82.49246901,141.61,141.53,368.10907563]
[1741192813450,0.42648471,141.6,141.53,319.0986]
[1741192813652,0.28432314,141.58,141.53,312.033]
[1741192813850,18.933972,141.56,141.48,0.033]
[1741192814054,0.28432314,141.53,141.48,0.033]
[1741192814286,81.0,141.52,141.48,0.033]
[1741192815282,1.6068,141.55,141.48,49.04347563]
[1741192815580,0.28432314,141.55,141.48,0.033]
[1741192815964,0.28432314,141.53,141.48,0.033]
[1741192816585,1.49246901,141.54,141.48,0.033]
[1741192816782,1.49246901,141.55,141.49,312.0]
[1741192817094,82.49246901,141.55,141.49,312.0]
[1741192817979,7.0651,141.54,141.49,312.0]
[1741192818178,0.28432314,141.52,141.48,0.033]
[1741192818379,81.0,141.52,141.48,0.033]
[1741192818970,81.0,141.51,141.48,0.033]
[1741192820198,88.0669,141.51,141.48,0.033]
[1741192820502,81.0,141.51,141.48,0.033]
[1741192821100,88.0666,141.51,141.48,312.033]
[1741192821915,81.0,141.51,141.48,312.033]
[1741192823493,81.0,141.51,141.48,319.1011]
[1741192823901,81.0,141.51,141.48,7.1011]
[1741192824285,81.0,141.51,141.48,30.32416078]
[1741192825184,81.0,141.51,141.48,0.033]
[1741192825704,81.0,141.56,141.49,30.29116078]
[1741192825909,81.0,141.55,141.49,30.29116078]
[1741192826609,81.0,141.55,141.5,7.0671]
[1741192826807,81.28432314,141.54,141.48,0.033]
[1741192826981,1.63463058,141.53,141.48,0.033]
[1741192827181,81.0,141.52,141.48,0.033]
[1741192827482,81.0,141.52,141.48,7.101]
[1741192828390,81.0,141.52,141.48,37.39216078]
[1741192829302,81.0,141.52,141.48,0.033]
[1741192829491,88.0661,141.52,141.48,0.033]
[1741192829693,81.0,141.52,141.48,7.1009]
[1741192829909,81.0,141.52,141.49,312.0]
[1741192830308,81.0,141.52,141.48,0.033]
[1741192830612,1.49246901,141.51,141.48,0.033]
[1741192830908,81.0,141.5,141.48,0.033]
[1741192831609,89.55726901,141.55,141.48,30.32416078]
[1741192831787,81.0,141.54,141.48,30.32416078]
[1741192832610,81.0,141.54,141.48,0.033]
[1741192833108,81.0,141.54,141.48,30.32416078]
[1741192833411,81.0,141.54,141.51,312.0]
[1741192833911,88.0651,141.54,141.51,312.0]
[1741192834112,81.0,141.54,141.51,312.0]
[1741192834413,88.0652,141.54,141.51,312.0]
[1741192835289,88.0652,141.54,141.48,7.101]
[1741192835512,81.0,141.53,141.48,7.101]
[1741192835898,81.0,141.53,141.48,0.033]
[1741192836105,81.0,141.52,141.48,0.033]
[1741192836696,81.0,141.52,141.48,30.32416078]
[1741192837091,81.0,141.52,141.48,0.033]
[1741192837293,88.0662,141.52,141.48,0.033]
[1741192838305,81.0,141.52,141.49,312.0]
[1741192838600,88.0662,141.52,141.49,312.0]
[1741192839512,81.28432314,141.51,141.49,312.0]
[1741192840017,0.42648471,141.49,141.48,0.033]
[1741192840315,26.19270984,141.49,141.48,0.033]
[1741192840487,20.56860258,141.49,141.48,0.033]
[1741192841108,27.63620258,141.49,141.48,0.033]
[1741192841421,7.76026901,141.5,141.48,0.033]
[1741192841622,82.49246901,141.51,141.48,0.033]
[1741192841795,81.0,141.51,141.48,0.033]
[1741192842289,81.0,141.51,141.47,0.033]
[1741192842526,81.0,141.51,141.47,30.32416078]
[1741192843017,81.0,141.51,141.49,312.0]
[1741192844398,81.0,141.51,141.47,7.1015]
[1741192844598,88.0666,141.51,141.47,0.033]
[1741192844919,81.0,141.51,141.47,7.1015]
[1741192845115,81.0,141.5,141.47,0.033]
[1741192846621,81.0,141.5,141.48,30.29116078]
[1741192846921,81.0,141.5,141.47,0.033]
[1741192846922,81.0,141.5,141.47,30.32416078]
[1741192847423,81.0,141.5,141.49,312.0]
[1741192848123,81.0,141.5,141.48,7.0681]
[1741192849926,1.52246901,141.54,141.48,7.0681]
[1741192849927,81.0,141.53,141.48,7.0681]
[1741192850495,81.0,141.53,141.48,24.7384]
[1741192850801,81.0,141.53,141.51,30.29116078]
[1741192851008,0.03,141.54,141.52,342.29116078]
[1741192851212,0.03,141.54,141.52,312.0]
[1741192851429,81.03,141.54,141.52,312.0]
[1741192852034,81.03,141.54,141.53,7.0656]
[1741192852827,81.03,141.54,141.52,312.0]
[1741192853027,81.0,141.53,141.49,7.0676]
[1741192853216,81.0,141.53,141.46,30.29116078]
[1741192853217,81.0,141.52,141.46,30.29116078]
[1741192853721,81.0,141.52,141.47,30.29116078]
[1741192853924,81.0,141.52,141.48,7.0681]
[1741192854118,81.0,141.52,141.48,37.35926078]
[1741192854725,81.0,141.52,141.48,7.0681]
[1741192855817,81.0,141.52,141.48,37.35926078]
[1741192856015,81.0,141.52,141.5,37.35826078]
[1741192856213,0.03,141.54,141.5,37.35826078]
[1741192857437,0.03,141.54,141.5,7.0671]
[1741192858317,0.03,141.54,141.48,30.29116078]
[1741192858521,81.0,141.53,141.47,30.29116078]
[1741192859106,81.0,141.52,141.46,7.0691]
[1741192859309,81.0,141.52,141.46,37.36026078]
[1741192859540,81.0,141.52,141.47,312.0]
[1741192859743,82.49246901,141.52,141.47,312.0]
[1741192860240,89.55876901,141.52,141.47,312.0]
[1741192860927,0.28432314,141.51,141.47,312.0]
[1741192861129,0.42648471,141.51,141.44,7.0698]
[1741192861312,82.49246901,141.5,141.42,30.29116078]
[1741192861517,0.28432314,141.49,141.41,37.36276078]
[1741192861727,81.0,141.48,141.42,30.29116078]
[1741192862427,88.0681,141.48,141.43,7.0706]
[1741192862627,81.0,141.47,141.42,7.071]
[1741192863346,81.0,141.47,141.42,37.36216078]
[1741192863751,81.0,141.47,141.41,7.0714]
[1741192864050,82.49246901,141.47,141.41,319.0714]
[1741192864252,89.56126901,141.47,141.41,319.0714]
[1741192864419,81.0,141.46,141.41,319.0714]
[1741192865247,81.0,141.46,141.42,30.29116078]
[1741192865755,81.0,141.46,141.41,37.36256078]
[1741192866730,88.0692,141.46,141.41,7.0714]
[1741192866926,81.0,141.46,141.41,7.0714]
[1741192867633,88.0691,141.46,141.41,7.0714]
[1741192868250,88.0691,141.46,141.42,312.0]
[1741192868454,81.0,141.46,141.42,319.0711]
[1741192868951,0.28432314,141.45,141.42,312.0]
[1741192869153,87.49712314,141.45,141.38,0.033]
[1741192869328,82.49246901,141.44,141.38,0.033]
[1741192869535,81.0,141.43,141.38,0.033]
[1741192870259,81.0,141.43,141.38,37.39716078]
[1741192871659,81.0,141.43,141.4,30.29116078]
[1741192871953,81.0,141.43,141.41,30.29116078]
[1741192872127,1.63463058,141.47,141.42,7.0711]
[1741192872128,81.0,141.45,141.42,7.0711]
[1741192873256,81.0,141.45,141.43,30.29116078]
[1741192873432,81.0,141.45,141.42,7.0711]
[1741192873632,81.0,141.45,141.39,7.21476157]
[1741192873957,81.0,141.45,141.41,30.29116078]
[1741192874148,81.0,141.45,141.39,7.21476157]
[1741192874325,81.0,141.45,141.41,7.0716]
[1741192875259,81.0,141.44,141.39,37.36356078]
[1741192875449,81.0,141.44,141.39,7.0724]
[1741192875651,81.0,141.44,141.41,312.0]
[1741192876351,7.0706,141.43,141.41,312.0]
[1741192877255,88.0703,141.44,141.41,312.0]
[1741192877459,81.0,141.44,141.41,319.0715]
[1741192877661,81.0,141.44,141.41,312.0]
[1741192878045,81.0,141.44,141.41,312.033]
[1741192878242,88.0702,141.44,141.41,312.033]
[1741192878443,81.0,141.43,141.41,312.033]
[1741192881165,88.0706,141.43,141.41,0.033]
[1741192881382,1.49246901,141.42,141.41,0.033]
[1741192881948,1.91895372,141.42,141.41,0.033]
[1741192882139,20.71076415,141.42,141.41,0.033]
[1741192882338,26.76296415,141.42,141.41,0.033]
[1741192882564,0.42648471,141.39,141.38,0.033]
[1741192882772,20.56860258,141.39,141.38,0.033]
[1741192883145,29.44166415,141.39,141.38,0.0001]
[1741192883348,0.42648471,141.38,141.35,1.0]
[1741192883542,0.14216157,141.36,141.35,1.0]
[1741192885060,7.21626157,141.36,141.35,1.0]
[1741192885975,26.15023357,141.36,141.35,1.0]
[1741192886558,0.42648471,141.36,141.35,1.0]
[1741192887076,1.49246901,141.37,141.35,1.0]
[1741192887281,0.42648471,141.36,141.35,1.0]
[1741192889484,7.50058471,141.36,141.35,1.0]
[1741192892284,7.35842314,141.36,141.35,1.0]
[1741192892777,0.28432314,141.36,141.35,1.0]
[1741192893267,7.50058471,141.36,141.35,1.0]
[1741192893766,26.15023357,141.36,141.35,1.0]